Cogmind - Beta 9.4 @@@ ROGUE MODE // 2020.03.10 @ 11:19:51 Player: Kyzrati Result: Destroyed by S-43 Plague with Heavy Machine Gun Performance ------------- Evolutions (7) 3500 Regions Visited (10) 2000 Robots Destroyed (23) 115 Value Destroyed (712) 712 Prototype IDs (1) 20 Alien Tech Used (0) 0 Bonus (511) 511 TOTAL SCORE: 6858 Bonus ------- Pacifist 470 High Alert Combat Kills 41 Cogmind --------- Core Integrity 0/1300 Matter 277/300 Energy 99/100 System Corruption 10% Temperature Cool (0) Movement Core (50) Location -3/Testing Parts ------- > --- POWER (2) -------- (None) > --- PROPULSION (9) --- (None) > --- UTILITY (8) ------ (None) > --- WEAPON (2) ------- (None) > --- INVENTORY (4) ---- Tesla Bomb Launcher Rocket Launcher Lance Peak State ------------ > --- POWER ------------ (None) > --- PROPULSION ------- Armored Leg Armored Leg Armored Leg Armored Leg VTOL Module VTOL Module Nuclear Pulse Array > --- UTILITY ---------- Hacking Suite Hacking Suite > --- WEAPON ----------- Lance > --- INVENTORY -------- Light Nuclear Core Tesla Bomb Launcher Rocket Launcher [Rating: 49] Favorites ----------- Power Micro Fission Core Power Core Micro Fission Core Propulsion Armored Leg Treads Improved Medium Treads Leg Armored Leg Flight Unit VTOL Module Utility Hacking Suite Storage Small Storage Unit Hackware Hacking Suite Weapon Lance Energy Gun Medium Laser Ballistic Gun Light Assault Rifle Launcher Rocket Launcher Slashing Weapon Axe Piercing Weapon Lance Build | -11 -10 -10 -9 -8 -7 -6 -5 -4 -3 -3 ------- Run | Scr Mat Min Mat Mat Fac Fac Fac Fac Res Tes Slots Evolved 14 | . . . 2 2 2 2 2 2 2 . Power 1 | . . . . . . . . . 1 . Propulsion 7 | . . . 2 1 1 . 1 1 1 . Utility 6 | . . . . 1 1 2 1 1 . . Weapon . | . . . . . . . . . . . Parts Attached 41 | 1 1 . . 3 2 7 12 8 4 3 Power 2 | . . . . . . . . 1 1 . Engine . | . . . . . . . . . . . Core 2 | . . . . . . . . 1 1 . Reactor . | . . . . . . . . . . . Propulsion 25 | . 1 . . 2 . 5 7 5 3 2 Treads 3 | . . . . . . 3 . . . . Leg 5 | . . . . . . . 5 . . . Wheel . | . . . . . . . . . . . Hover . | . . . . . . . . . . . Flight 17 | . 1 . . 2 . 2 2 5 3 2 Utility 2 | . . . . . 1 . 1 . . . Device . | . . . . . . . . . . . Storage . | . . . . . . . . . . . Processor . | . . . . . . . . . . . Hackware 2 | . . . . . 1 . 1 . . . Protection . | . . . . . . . . . . . Artifact . | . . . . . . . . . . . Weapon 12 | 1 . . . 1 1 2 4 2 . 1 Energy Gun . | . . . . . . . . . . . Energy Cannon . | . . . . . . . . . . . Ballistic Gun 1 | 1 . . . . . . . . . . Ballistic Cannon . | . . . . . . . . . . . Launcher 7 | . . . . 1 . 2 2 1 . 1 Special Weapon . | . . . . . . . . . . . Impact Weapon . | . . . . . . . . . . . Slashing Weapon 1 | . . . . . 1 . . . . . Piercing Weapon 3 | . . . . . . . 2 1 . . Special Melee Weapon . | . . . . . . . . . . . Unidentified Prototypes 1 | . . . . . . . 1 . . . Parts Lost 25 | . . . . 3 . 6 . 3 9 4 Power 2 | . . . . . . . . . 2 . Propulsion 20 | . . . . 3 . 5 . 2 7 3 Utility 2 | . . . . . . . . 1 . 1 Weapon 1 | . . . . . . 1 . . . . Highest Loss Streak 10 | . . . . 3 . 6 . 2 10 4 Average Slot Usage (%) 22 | . 28 14 11 7 2 20 34 46 25 7 Leg 7 | . 14 . . . . . 19 17 . . Flight 7 | . 5 14 11 6 . 1 5 16 11 3 Hackware 4 | . . . . . 1 6 6 7 4 3 Naked Turns 155 | . . . . 48 95 . . . . 12 Heaviest Build 9 | 1 1 . . . 3 3 3 8 8 9 Greatest Support 64 | 3 4 4 4 8 3 3 3 64 35 37 Greatest Overweight (x) . | . . . . . . . . . . . Average Overweight (x) . | . . . . . . . . . . . Largest Inventory Capacity 6 | 6 4 4 4 4 4 4 4 4 4 4 Average Capacity 4 | 5 4 4 4 4 4 4 4 4 4 4 Most Carried 6 | 6 4 4 4 4 4 3 4 4 4 3 Average Carried 3 | 4 3 4 4 3 3 2 3 3 3 2 Final Capacity 4 | 4 4 4 4 4 4 4 4 4 4 4 Final Carried 4 | 3 4 4 4 4 3 3 4 4 3 3 Class Distribution -------------------- 75% | Mutant 17% | Hacker-Mutant 7% | Scavenger-Sprinter Dominant Class ---------------- Mutant | -10/Materials Mutant | -10/Mines Mutant | -9/Materials Mutant | -8/Materials Mutant | -7/Factory Mutant | -6/Factory Mutant | -5/Factory Hacker-Mutant | -4/Factory Mutant | -3/Research Mutant | -3/Testing Resources | -11 -10 -10 -9 -8 -7 -6 -5 -4 -3 -3 ----------- Run | Scr Mat Min Mat Mat Fac Fac Fac Fac Res Tes Matter Collected 594 | 200 . . . 13 . 32 29 208 . 112 Remotely . | . . . . . . . . . . . Salvage Created 285 | . . . . 22 . 68 55 140 . . Parts 35 | . . . . 10 . 10 6 9 . . Haulers Intercepted . | . . . . . . . . . . . Recyclers Shooed . | . . . . . . . . . . . Parts Field Recycled . | . . . . . . . . . . . Retrieved Matter . | . . . . . . . . . . . Parts Self-Destructed . | . . . . . . . . . . . Prevented . | . . . . . . . . . . . Kills | -11 -10 -10 -9 -8 -7 -6 -5 -4 -3 -3 ------- Run | Scr Mat Min Mat Mat Fac Fac Fac Fac Res Tes Combat Hostiles Destroyed 20 | . . . . 4 . 7 4 5 . . Melee 4 | . . . . . . . . 4 . . AOE 16 | . . . . 4 . 7 4 1 . . Classes Destroyed 4 | . . . . 2 . 1 . 1 . . Worker 2 | . . . . 1 . 1 . . . . Watcher 1 | . . . . . . 1 . . . . Swarmer 19 | . . . . 4 . 7 4 4 . . Programmer 1 | . . . . . . . . 1 . . Best Kill Streak 5 | . . . . 5 . 5 4 4 . . Combat Bots Only 4 | . . . . 4 . 4 4 4 . . Max Kills in Single Turn 5 | . . . . 5 . 3 2 1 . . Gunslinging . | . . . . . . . . . . . Exploded 4 | . . . . 4 . 3 2 1 . . Melee 1 | . . . . . . . . 1 . . Uniques/NPCs Destroyed . | . . . . . . . . . . . Combat | -11 -10 -10 -9 -8 -7 -6 -5 -4 -3 -3 -------- Run | Scr Mat Min Mat Mat Fac Fac Fac Fac Res Tes Damage Taken 4815 | . . 134 10 485 69 1259 145 730 937 1046 Core 2459 | . . 117 10 426 69 480 . 56 533 768 Absorbed by Shields . | . . . . . . . . . . . Core Remaining (%) 75 | 100 . 53 97 22 90 43 100 95 . . Volleys Fired 12 | . . . . 2 . 6 2 2 . . Largest 1 | . . . . 1 . 1 1 1 . . Hottest 33 | . . . . 33 . 33 33 33 . . Shots Fired 12 | . . . . 2 . 6 2 2 . . Gun . | . . . . . . . . . . . Cannon . | . . . . . . . . . . . Launcher 12 | . . . . 2 . 6 2 2 . . Special . | . . . . . . . . . . . Kinetic . | . . . . . . . . . . . Thermal . | . . . . . . . . . . . Explosive 12 | . . . . 2 . 6 2 2 . . Electromagnetic . | . . . . . . . . . . . Robot Hit Streak 1 | . . . . 1 . 1 1 . . . Robot Miss Streak 3 | . . . . 1 . 3 3 . . . Penetration Max . | . . . . . . . . . . . Secondary Targets . | . . . . . . . . . . . Shots Hit Robots 17 | . . . . 1 . 1 1 13 1 . Core Hits 34 | . . . . 7 . 13 6 7 . 1 Critical Hits . | . . . . . . . . . . . Critical Kills . | . . . . . . . . . . . Critical Parts Destroyed . | . . . . . . . . . . . Melee Attacks 35 | . . . . . 1 . 4 19 11 . Impact . | . . . . . . . . . . . Slashing 1 | . . . . . 1 . . . . . Piercing 34 | . . . . . . . 4 19 11 . Sneak Attacks 1 | . . . . . . . . 1 . . Combat Hostiles . | . . . . . . . . . . . Follow-up Attacks . | . . . . . . . . . . . Damage Inflicted 2408 | . . . . 304 . 1031 273 754 35 11 Guns . | . . . . . . . . . . . Cannons . | . . . . . . . . . . . Explosions 1783 | . . . . 304 . 1031 273 175 . . Melee 607 | . . . . . . . . 575 32 . Ramming 18 | . . . . . . . . 4 3 11 Kinetic . | . . . . . . . . . . . Thermal . | . . . . . . . . . . . Explosive 1783 | . . . . 304 . 1031 273 175 . . Electromagnetic . | . . . . . . . . . . . Impact . | . . . . . . . . . . . Slashing . | . . . . . . . . . . . Piercing 607 | . . . . . . . . 575 32 . Highest Corruption 10 | . . . . . . . . 1 5 10 Average Corruption 3 | . . . . . . . . 1 3 5 Corruption Purged . | . . . . . . . . . . . Effects 6 | . . . . . . . . . 2 4 Message Errors 1 | . . . . . . . . . . 1 Matter Fused 2 | . . . . . . . . . . 2 Heat Flow Errors 1 | . . . . . . . . . . 1 Data Loss (major) 1 | . . . . . . . . . 1 . Targeting Errors 1 | . . . . . . . . . 1 . Overload Shots . | . . . . . . . . . . . Overflow Damage 277 | . . . . . . 161 . 116 . . Projectiles . | . . . . . . . . . . . Explosions 173 | . . . . . . 161 . 12 . . Melee 104 | . . . . . . . . 104 . . Knockbacks . | . . . . . . . . . . . Impact . | . . . . . . . . . . . Kinetic . | . . . . . . . . . . . Secondary . | . . . . . . . . . . . Self-Inflicted Damage 6 | . . . . . . . . . 1 5 Shots . | . . . . . . . . . . . Rammed 3 | . . . . . . . . 1 1 1 Targets Rammed 5 | . . . . . . . . 3 1 1 Kicked 2 | . . . . . . . . 2 . . Crushed . | . . . . . . . . . . . Highest Temperature 158 | . . . . . . . . . 4 158 Average Temperature 72 | . . . . . . . . . 4 89 Received Heat Transfer 579 | . . . 6 153 15 255 9 9 132 . Siege Activations . | . . . . . . . . . . . Robots Corrupted . | . . . . . . . . . . . Combat Hostiles . | . . . . . . . . . . . Parts Fried . | . . . . . . . . . . . Impact Corruptions . | . . . . . . . . . . . Robots Melted . | . . . . . . . . . . . Combat Hostiles . | . . . . . . . . . . . Parts Melted . | . . . . . . . . . . . Heat Transferred . | . . . . . . . . . . . Parts Sabotaged . | . . . . . . . . . . . Parts Stolen . | . . . . . . . . . . . Parts Stripped . | . . . . . . . . . . . Power Chain Reactions . | . . . . . . . . . . . Missiles Intercepted . | . . . . . . . . . . . Alert | -11 -10 -10 -9 -8 -7 -6 -5 -4 -3 -3 ------- Run | Scr Mat Min Mat Mat Fac Fac Fac Fac Res Tes Peak Influence 561 | . 15 20 22 164 120 561 442 470 261 169 Average Influence 211 | . 11 19 14 95 88 185 368 351 248 149 Maximum Alert Level 2 | . . . . . . 2 2 2 1 . Low Security (%) 49 | 100 100 100 100 100 100 66 . . . 100 Level 1 30 | . . . . . . 23 45 55 100 . Level 2 19 | . . . . . . 9 54 44 . . Level 3 . | . . . . . . . . . . . Level 4 . | . . . . . . . . . . . Level 5 . | . . . . . . . . . . . High Security . | . . . . . . . . . . . Max Security . | . . . . . . . . . . . Squads Dispatched 15 | . . . . 1 1 4 4 . 2 3 Investigation 6 | . . . . 1 . 1 3 . . 1 Extermination . | . . . . . . . . . . . Reinforcement 9 | . . . . . 1 3 1 . 2 2 Assault . | . . . . . . . . . . . Garrison . | . . . . . . . . . . . Intercept . | . . . . . . . . . . . Construction Impeded 1 | . . . . . . . 1 . . . Haulers Reinforced . | . . . . . . . . . . . Stealth | -11 -10 -10 -9 -8 -7 -6 -5 -4 -3 -3 --------- Run | Scr Mat Min Mat Mat Fac Fac Fac Fac Res Tes Distress Signals 3 | . . . . 1 . . . . 2 . Communications Jammed . | . . . . . . . . . . . Distress Signals . | . . . . . . . . . . . Times Spotted 106 | . 2 3 3 17 5 26 11 11 18 10 Peak Tracking Total 16 | . 3 3 3 12 5 16 5 4 14 7 Tactical Retreats 9 | . . . . 1 . 3 . 2 2 1 Traps | -11 -10 -10 -9 -8 -7 -6 -5 -4 -3 -3 ------- Run | Scr Mat Min Mat Mat Fac Fac Fac Fac Res Tes Traps Triggered 5 | . . . . 1 1 1 1 . . 1 Indirectly . | . . . . . . . . . . . Trap Hack Attempts . | . . . . . . . . . . . Triggered . | . . . . . . . . . . . Disarmed . | . . . . . . . . . . . Reprogrammed . | . . . . . . . . . . . Reused . | . . . . . . . . . . . Traps Extracted . | . . . . . . . . . . . Installed . | . . . . . . . . . . . Triggered . | . . . . . . . . . . . Machines | -11 -10 -10 -9 -8 -7 -6 -5 -4 -3 -3 ---------- Run | Scr Mat Min Mat Mat Fac Fac Fac Fac Res Tes Machines Disabled 17 | . . . . . . 15 . 2 . . Max in Single Turn 6 | . . . . . . 6 . 2 . . Machines Sabotaged . | . . . . . . . . . . . Garrisons Compromised . | . . . . . . . . . . . Overloaded Fab Kills . | . . . . . . . . . . . Fab Network Shutdowns . | . . . . . . . . . . . Hacking | -11 -10 -10 -9 -8 -7 -6 -5 -4 -3 -3 --------- Run | Scr Mat Min Mat Mat Fac Fac Fac Fac Res Tes Machines Accessed 10 | . . . . . 2 2 2 1 2 1 Terminals 10 | . . . . . 2 2 2 1 2 1 Fabricators . | . . . . . . . . . . . Repair Stations . | . . . . . . . . . . . Recycling Units . | . . . . . . . . . . . Scanalyzers . | . . . . . . . . . . . Garrison Access . | . . . . . . . . . . . Total Hacks 20 | . . . . . 2 4 5 3 5 1 Successful 4 | . . . . . 1 2 . 1 . . Failed 16 | . . . . . 1 2 5 2 5 1 Catastrophic 4 | . . . . . 1 1 1 . 1 . Database Lockouts . | . . . . . . . . . . . Manual 15 | . . . . . 1 2 5 3 3 1 Terminals 20 | . . . . . 2 4 5 3 5 1 Fabricators . | . . . . . . . . . . . Repair Stations . | . . . . . . . . . . . Recycling Units . | . . . . . . . . . . . Scanalyzers . | . . . . . . . . . . . Garrison Access . | . . . . . . . . . . . Terminal Hacks 3 | . . . . . 1 2 . . . . Level Access Points 2 | . . . . . 1 1 . . . . Alert Level 1 | . . . . . . 1 . . . . Fabricator Hacks . | . . . . . . . . . . . Repair Station Hacks . | . . . . . . . . . . . Recycling Unit Hacks . | . . . . . . . . . . . Scanalyzer . | . . . . . . . . . . . Garrison Access Hacks . | . . . . . . . . . . . Unauthorized Hacks 7 | . . . . . . . 2 3 2 . Terminals 1 | . . . . . . . . 1 . . Botnet 1 | . . . . . . . . 1 . . Fabricators . | . . . . . . . . . . . Repair Stations . | . . . . . . . . . . . Recycling Units . | . . . . . . . . . . . Scanalyzers . | . . . . . . . . . . . Garrison Access . | . . . . . . . . . . . Data Cores Recovered . | . . . . . . . . . . . Used . | . . . . . . . . . . . Hacking Detections 8 | . . . . . 1 1 2 1 2 1 Full Trace Events 3 | . . . . . . 1 2 . . . Feedback Events . | . . . . . . . . . . . Feedback Blocked . | . . . . . . . . . . . Robot Schematics Acquired . | . . . . . . . . . . . Robots Built . | . . . . . . . . . . . Matter . | . . . . . . . . . . . Time . | . . . . . . . . . . . Total Robot Build Rating . | . . . . . . . . . . . Part Schematics Acquired . | . . . . . . . . . . . Parts Built . | . . . . . . . . . . . Matter . | . . . . . . . . . . . Time . | . . . . . . . . . . . Total Part Build Rating . | . . . . . . . . . . . Parts Repaired . | . . . . . . . . . . . Time . | . . . . . . . . . . . Parts Recycled . | . . . . . . . . . . . Recycled Matter . | . . . . . . . . . . . Retrieved Matter . | . . . . . . . . . . . Retrieved Components . | . . . . . . . . . . . Parts Scanalyzed . | . . . . . . . . . . . Part Schematics Acquired . | . . . . . . . . . . . Parts Damaged . | . . . . . . . . . . . Bothacking | -11 -10 -10 -9 -8 -7 -6 -5 -4 -3 -3 ------------ Run | Scr Mat Min Mat Mat Fac Fac Fac Fac Res Tes Used RIF Installer . | . . . . . . . . . . . Robots Hacked . | . . . . . . . . . . . Non-combat . | . . . . . . . . . . . Combat . | . . . . . . . . . . . Robot Hacks Applied . | . . . . . . . . . . . Relay Couplers Released . | . . . . . . . . . . . Robots Rewired . | . . . . . . . . . . . Allies Hacked . | . . . . . . . . . . . Hacks Repelled . | . . . . . . . . . . . Allies | -11 -10 -10 -9 -8 -7 -6 -5 -4 -3 -3 -------- Run | Scr Mat Min Mat Mat Fac Fac Fac Fac Res Tes Total Allies . | . . . . . . . . . . . Largest Group . | . . . . . . . . . . . Highest-Rated Group . | . . . . . . . . . . . Highest-Rated Ally . | . . . . . . . . . . . Total Orders 2 | . . . . . . . 2 . . . EXPLORE 2 | . . . . . . . 2 . . . Ally Attacks . | . . . . . . . . . . . Total Damage . | . . . . . . . . . . . Kills . | . . . . . . . . . . . Allies Corrupted . | . . . . . . . . . . . Allies Melted . | . . . . . . . . . . . Intel | -11 -10 -10 -9 -8 -7 -6 -5 -4 -3 -3 ------- Run | Scr Mat Min Mat Mat Fac Fac Fac Fac Res Tes Robot Analysis Total . | . . . . . . . . . . . Derelict Logs Recovered . | . . . . . . . . . . . Drone Launches 3 | . . . . . . . 3 . . . Drone Recoveries . | . . . . . . . . . . . Exploration | -11 -10 -10 -9 -8 -7 -6 -5 -4 -3 -3 ------------- Run | Scr Mat Min Mat Mat Fac Fac Fac Fac Res Tes Turns Passed 1169 | 4 46 58 62 97 126 126 260 174 111 105 Spaces Moved 2127 | 1 93 144 150 198 239 204 440 226 217 215 Core 1259 | 1 47 . . 96 239 204 440 119 . 113 Treads . | . . . . . . . . . . . Legs 13 | . . . . . . . . 13 . . Wheels . | . . . . . . . . . . . Hover . | . . . . . . . . . . . Flight 855 | . 46 144 150 102 . . . 94 217 102 Fastest Speed 25 | 50 40 40 40 37 50 50 50 25 31 37 Average Speed 45 | 50 45 40 40 44 50 50 50 45 35 45 Slowest Speed 120 | 50 50 40 40 50 50 50 50 120 40 50 Overloaded Moves . | . . . . . . . . . . . Propulsion Burnouts . | . . . . . . . . . . . Robots Hopped 11 | . . 4 . 1 . . . 2 . 4 Cave-ins Triggered . | . . . . . . . . . . . Exploration Rate (%) 20 | 2 23 42 20 36 11 12 20 9 12 35 Regions Visited 10 Branch Regions 2 Pre-discovered Areas . | . . . . . . . . . . . Known Exits Taken 2 | . . . . . 1 1 . . . . Unknown Exits Taken 8 | 1 1 1 1 1 . . 1 1 1 . Scrap Searched . | . . . . . . . . . . . Spaces Dug 15 | . . . . . 1 . 4 1 9 . Terrain Destroyed 160 | . . . . 15 1 67 15 53 9 . Melee 15 | . . . . . 1 . 4 1 9 . Projectile . | . . . . . . . . . . . AOE 145 | . . . . 15 . 67 11 52 . . Actions | -11 -10 -10 -9 -8 -7 -6 -5 -4 -3 -3 --------- Run | Scr Mat Min Mat Mat Fac Fac Fac Fac Res Tes Total 2241 | 5 97 139 151 202 243 219 469 264 234 218 Wait 6 | . . . . . . 1 2 1 . 2 Move 2097 | . 92 136 149 195 238 203 439 221 217 207 Hop 10 | . . 3 . 1 . . . 2 . 4 Pick Up 6 | . . . 1 . 1 . 3 1 . . Fast Attach 29 | . 1 . . 2 1 5 9 6 3 2 Attach 12 | 1 . . . 1 1 2 3 2 1 1 Detach 12 | . 2 . . 1 . 2 3 2 1 1 Swap . | . . . . . . . . . . . Drop 17 | 4 2 . 1 . 1 . 3 5 1 . Fire 12 | . . . . 2 . 6 2 2 . . Melee 35 | . . . . . 1 . 4 19 11 . Ram 1 | . . . . . . . . . . 1 Kick 3 | . . . . . . . . 3 . . Crush . | . . . . . . . . . . . Escape Stasis . | . . . . . . . . . . . Rewire . | . . . . . . . . . . . Trap . | . . . . . . . . . . . Miscellaneous 1 | . . . . . . . 1 . . . Route ------- -11/Scrapyard -10/Materials -10/Mines -9/Materials -8/Materials -7/Factory (discovered 4 exits: *Fac x4) -6/Factory (discovered 4 exits: *Fac x4) -5/Factory -4/Factory -3/Research -3/Testing History --------- Turn | Location | Event 5 | -11/Scrapyard | Discovered new exit (range 0) 5 | -11/Scrapyard | Entered Materials 45 | -10/Materials | Discovered new exit (range 16) 51 | -10/Materials | Entered Mines 106 | -10/Mines | Discovered new exit (range 9) 109 | -10/Mines | Entered Materials 109 | -9/Materials | Evolved 2 slots: Propulsion x2 169 | -9/Materials | Discovered new exit (range 5) 171 | -9/Materials | Entered another Materials area 171 | -8/Materials | Evolved 2 slots: Propulsion x1, Utility x1 233 | -8/Materials | Core integrity fell below 50% 254 | -8/Materials | Lost 3 parts (3n) 263 | -8/Materials | Discovered new exit (range 11) 268 | -8/Materials | Entered Factory 268 | -7/Factory | Evolved 2 slots: Propulsion x1, Utility x1 314 | -7/Factory | Build established: Mutant 383 | -7/Factory | Identified exit to Factory 394 | -7/Factory | Entered another Factory area 394 | -6/Factory | Evolved 2 slots: Utility x2 475 | -6/Factory | Identified exit to Factory 478 | -6/Factory | Spotted B-75 Beast 501 | -6/Factory | Core integrity fell below 50% 520 | -6/Factory | Entered another Factory area 520 | -5/Factory | Evolved 2 slots: Propulsion x1, Utility x1 521 | -5/Factory | Lost 6 parts (5n1w) 687 | -5/Factory | Found Prototype Launcher 687 | -5/Factory | Identified Tesla Bomb Launcher 767 | -5/Factory | Discovered new exit (range 24) 780 | -5/Factory | Entered another Factory area 780 | -4/Factory | Evolved 2 slots: Propulsion x1, Utility x1 937 | -4/Factory | Discovered new exit (range 6) 954 | -4/Factory | Entered Research 954 | -3/Research | Evolved 2 slots: Power x1, Propulsion x1 1063 | -3/Research | Discovered new exit (range 5) 1065 | -3/Research | Entered Testing 1094 | -3/Testing | Lost 10 parts (2p8n) 1108 | -3/Testing | Core integrity fell below 50% 1148 | -3/Testing | Core integrity fell below 20% 1165 | -3/Testing | System corruption reached 10% 1170 | -3/Testing | Destroyed by S-43 Plague with Heavy Machine Gun Last Messages --------------- 01098_ System corrupted: Matter fused (-10). 01102_ Acquired Impulse Thruster Array. 01107_ Slug penetrates Wall. 01113_ Impulse Thruster destroyed. 01114_ CSMIPGDD#> 1QI4JIE0VF 01123_ Impulse Thruster Array destroyed. 01124_ Slug penetrates Door. 01127_ Penetrated by Slug. 01127_ Slug penetrates Wall. 01130_ U-05 Engineer builds a Door. 01130_ Impulse Thruster Array destroyed. 01131_ Penetrated by Slug. 01131_ Slug penetrates Wall. 01152_ O-32 Director: "IFF HANDSHAKE FAILED. SECURING TERMINAL." 01156_ ALERT: Hostiles spotted, dispatching reinforcements to Terminal T002. 01158_ Slammed into S-43 Plague. 01158_ Hacking Suite destroyed. 01158_ System corrupted by crushing effect (+2). 01164_ System corrupted: Heat flow error (+204). Map ----- +----------------------------------------------------+ | | | | | | | | | ?????????????????????????????????????????????????? | | ?????????????????????????????????????????????????? | | ?????????????????????????????????????????????????? | | ?????????????????????????????????????????????????? | | ?????????????????????????????????????????????????? | | ?????????????????????????????????????????????????? | | ?????????????????????????????????????????????????? | | ?????????????????????????????????????????????????? | | ?????????????????????????????????????????????????? | | ?????????????????????????????????????????????????? | | ?????????????????????????????????????????? #?????? | | ???????????????????????????????????"" ??? #?????? | | ??????????????????????????????????#"" ??? #?????? | | ??????????????????????????????????#"" """ ####### | | ??????????????????????????????????#T """ + | | ??????????????????????????????????#"" """ ## | | ??????????????????????????????????#"" """ ## | | ???????????????????????????????????"" """ ## # | | ????????????????????????????????????? ??# # | | ?????????????##+#######################+##### # | | ?????????? s s # | | ?????????? @ s p ##+##### # | | ?????????? ##########+########### # # | | ???????????????????????????# #???????# # # | | ???????????????????????????# ""#???????# # # | | ???????????????????????????# ""#???????# # # | | ???????????????????????????#! ""#???????# # # | | ???????????????????????????# T#???????# # # | | ???????????????????????????# ""#???????########+# | | ???????????????????????????# ""#????????????????? | | ???????????????????????????# ""#????????????????? | | ???????????????????????????#/ #????????????????? | | ???????????????????????????######????????????????? | | ?????????????????????????????????????????????????? | | ?????????????????????????????????????????????????? | | ?????????????????????????????????????????????????? | | ?????????????????????????????????????????????????? | | ?????????????????????????????????????????????????? | | ?????????????????????????????????????????????????? | | ?????????????????????????????????????????????????? | | ?????????????????????????????????????????????????? | | ?????????????????????????????????????????????????? | | ?????????????????????????????????????????????????? | | ?????????????????????????????????????????????????? | | ?????????????????????????????????????????????????? | | ?????????????????????????????????????????????????? | +----------------------------------------------------+ Best States ------------- Heat Dissipation 46 Energy Generation 18 Energy Capacity 170 Matter Stores 300 Matter Capacity 300 Sight Range 16 Terrain Scan Density 10 Evasion (%) 65 Recoil Reduction 3 Offensive Hacking 20 Item Schematics ----------------- None Robot Schematics ------------------ None Fabricated ------------ Nothing Alien Tech Used ----------------- None Achievements -------------- None Challenges ------------ None Game ------ Seed MagneticProtonPrototype Manual? 1 Play Time 00:40:27 Cumulative 217.4 hours Start 2020.03.10 @ 10:39:12 End 2020.03.10 @ 11:19:51 Sessions 1 Manual Loads 0 Difficulty Rogue Special Mode None Game No. 77 Rogue 77 Adventurer 0 Explorer 0 Win Type - Total 17 Types 13/0/1/2/0/1/0 Lore% 30 Gallery% 73 Achievement% 76 Wizard Run 0 Options --------- ASCII 0 Keyboard 1 Movement Numpad Keybinds 0 Fullscreen 2 Font 20/SmallcapsGlow Map View 66x50 Tactical HUD 1 Map Filters NONE Filters NONE Steam 1 RUN: 5660187a-cdb6-4be1-b414-324726671c2b